bitfinex/quotes_SOLUSD_20220311
["timestamp","ask_amount","ask_price","bid_price","bid_amount"]
[1646960031735,6.047,82.727,82.645,141.39481978]
[1646960031736,6.047,82.727,82.645,114.4]
[1646960031935,18.1499,82.72,82.636,3.04447957]
[1646960032140,6.047,82.719,82.645,26.27486802]
[1646960032539,6.047,82.719,82.65,18.1516]
[1646960032737,46.391,82.728,82.651,6.047]
[1646960032938,54.29691886,82.729,82.651,61.3966878]
[1646960033139,54.29691886,82.729,82.652,35.31934759]
[1646960033337,54.29691886,82.729,82.653,6.046]
[1646960033538,54.29691886,82.729,82.67,18.1425]
[1646960033738,54.29691886,82.729,82.68,14.54]
[1646960034940,54.29691886,82.729,82.69,18.1392]
[1646960035743,53.79691886,82.729,82.69,18.1392]
[1646960039243,53.79691886,82.729,82.7,18.1387]
[1646960039646,53.79691886,82.729,82.681,6.043]
[1646960039848,53.79691886,82.729,82.68,14.54]
[1646960040044,53.79691886,82.729,82.671,6.045]
[1646960040045,53.79691886,82.729,82.656,30.2551]
[1646960040245,53.79691886,82.729,82.66,18.1482]
[1646960040745,53.79691886,82.729,82.66,32.6882]
[1646960041349,53.79691886,82.729,82.661,6.046]
[1646960041546,53.79691886,82.729,82.67,18.1457]
[1646960043448,53.79691886,82.729,82.68,18.1394]
[1646960044652,53.79691886,82.729,82.68,32.6794]
[1646960045454,53.79691886,82.729,82.68,18.1394]
[1646960046852,53.79691886,82.729,82.68,32.6794]
[1646960047756,6.045,82.779,82.681,9.08947957]
[1646960047955,18.3272,82.834,82.681,9.08947957]
[1646960047956,54.3723,82.8,82.69,18.1326]
[1646960048154,54.3723,82.8,82.7,14.54]
[1646960048456,54.3723,82.8,82.701,6.042]
[1646960048655,54.3723,82.8,82.701,29.5421]
[1646960048656,27.67465512,82.799,82.701,29.5421]
[1646960048954,182.00356421,82.798,82.701,23.5001]
[1646960049154,185.04804378,82.798,82.701,23.5001]
[1646960049354,18.142,82.75,82.7,14.54]
[1646960049757,6.043,82.749,82.68,14.54]
[1646960049960,6.043,82.749,82.66,18.1483]
[1646960050167,79.04843469,82.748,82.661,6.045]
[1646960050360,60.01132382,82.747,82.651,6.045]
[1646960050564,18.146,82.73,82.651,6.045]
[1646960050764,49.72453857,82.728,82.65,14.54]
[1646960050963,49.72453857,82.728,82.651,6.046]
[1646960052264,18.1491,82.72,82.66,18.1496]
[1646960052671,6.046,82.719,82.66,18.1496]
[1646960053068,7.63,82.719,82.651,6.046]
[1646960053468,6.047,82.718,82.651,6.046]
[1646960053669,18.1512,82.71,82.651,6.046]
[1646960053869,47.90074946,82.709,82.651,6.046]
[1646960054771,18.1529,82.7,82.622,24.2699]
[1646960054970,30.0791,82.699,82.622,24.2699]
[1646960055771,25.52683857,82.679,82.622,24.2699]
[1646960056698,25.52683857,82.679,82.606,85.23495661]
[1646960056897,18.1589,82.67,82.606,85.23495661]
[1646960057097,25.2489,82.67,82.606,24.0343]
[1646960057497,6.049,82.669,82.606,24.0343]
[1646960057700,6.049,82.669,82.595,13.86442471]
[1646960057899,18.1614,82.66,82.588,114.4]
[1646960058098,41.85374946,82.658,82.588,114.4]
[1646960058298,41.85374946,82.658,82.588,113.9]
[1646960058900,6.051,82.657,82.588,113.9]
[1646960059101,6.051,82.657,82.6,18.1624]
[1646960062602,41.85374946,82.658,82.6,18.1624]
[1646960062804,41.85374946,82.658,82.61,18.1527]
[1646960063003,41.85374946,82.658,82.61,32.6927]
[1646960063202,41.85374946,82.658,82.611,77.35244115]
[1646960063602,41.85374946,82.658,82.612,18.42031251]
[1646960063804,41.85374946,82.658,82.62,18.1534]
[1646960064003,41.85374946,82.658,82.62,32.6934]
[1646960064606,6.05,82.699,82.62,48.06923294]
[1646960064804,6.048,82.706,82.64,18.1499]
[1646960065005,6.048,82.706,82.64,32.6899]
[1646960065504,64.81450517,82.705,82.641,32.10728331]
[1646960065705,6.047,82.704,82.641,32.10728331]
[1646960066007,6.047,82.704,82.65,18.1517]
[1646960067110,6.047,82.704,82.65,32.6917]
[1646960068110,64.81450517,82.705,82.65,32.6917]
[1646960070713,64.81450517,82.705,82.651,15.37583294]
[1646960070915,64.81450517,82.705,82.661,58.93212864]
[1646960071115,64.81450517,82.705,82.67,14.54]
[1646960071916,64.81450517,82.705,82.67,32.6868]
[1646960072114,64.81450517,82.705,82.67,18.1468]
[1646960076825,64.81450517,82.705,82.671,63.67934839]
[1646960077023,6.046,82.747,82.68,18.1363]
[1646960077223,23.5592,82.748,82.68,39.0263]
[1646960078027,61.5095069,82.747,82.68,39.0263]
[1646960078227,61.5095069,82.747,82.68,20.89]
[1646960078425,6.043,82.746,82.68,14.54]
[1646960079025,18.1457,82.73,82.68,14.54]
[1646960079225,11.91608113,82.729,82.68,14.54]
[1646960079826,11.91608113,82.729,82.672,24.1398]
[1646960080628,11.91608113,82.729,82.642,15.72961961]
[1646960080629,18.1477,82.72,82.642,15.72961961]
[1646960080833,6.047,82.719,82.65,18.151]
[1646960081029,6.047,82.727,82.65,18.151]
[1646960081930,18.1507,82.71,82.65,18.151]
[1646960082851,48.02646823,82.709,82.65,18.151]
[1646960083252,18.1526,82.7,82.65,18.151]
[1646960083454,18.1526,82.7,75.016,1.0]
[1646960083455,23.5926,82.7,82.631,6.047]
[1646960083651,23.5926,82.7,82.618,15.72961961]
[1646960083652,6.048,82.699,82.619,30.1455]
[1646960084057,33.72265512,82.699,82.619,30.1455]
[1646960084253,36.76713469,82.699,82.619,24.0975]
[1646960084454,52.33095512,82.698,82.619,24.0975]
[1646960084652,19.3541198,82.679,82.619,24.0975]
[1646960084852,6.049,82.678,82.619,24.0975]
[1646960086258,18.1595,82.67,82.619,24.0975]
[1646960089764,18.1595,82.67,82.611,6.05]
[1646960089965,18.1595,82.67,82.569,192.3905]
[1646960089966,6.05,82.669,82.593,6.05]
[1646960090167,18.1662,82.65,82.593,6.05]
[1646960090365,18.1662,82.65,82.581,6.051]
[1646960090568,71.00316823,82.649,82.581,6.051]
[1646960090767,71.00316823,82.649,82.58,15.72961961]
[1646960090969,6.051,82.648,82.58,15.72961961]
[1646960092071,6.051,82.648,82.58,33.89471961]
[1646960092873,6.051,82.648,82.581,6.051]
[1646960093071,6.051,82.648,82.59,18.1628]
[1646960095379,6.051,82.648,82.6,18.1624]
[1646960095582,48.02646823,82.649,82.6,18.1624]
[1646960097882,48.02646823,82.649,82.611,41.33548467]
[1646960098084,48.02646823,82.649,82.612,6.051]
[1646960098682,48.02646823,82.649,82.611,6.051]
[1646960098885,48.02646823,82.649,82.6,15.72961961]
[1646960100182,48.02646823,82.649,82.6,33.89121961]
[1646960102405,48.02646823,82.649,82.6,15.72961961]
[1646960102606,6.051,82.648,82.588,15.72961961]
[1646960102906,6.051,82.648,82.58,6.051]
[1646960103106,24.395,82.647,82.58,6.051]
[1646960103305,6.051,82.646,82.579,24.9161]
[1646960104107,18.1653,82.64,82.58,18.1667]
[1646960104306,6.051,82.639,82.58,18.1667]
[1646960104707,6.051,82.646,82.58,18.1667]
[1646960106107,18.1678,82.63,82.58,18.1667]
[1646960106308,19.3541198,82.629,82.58,18.1667]
[1646960106910,19.3541198,82.629,82.564,15.72961961]
[1646960107108,29.9089,82.628,82.565,6.053]
[1646960107307,18.1697,82.62,82.559,23.8722]
[1646960107509,6.054,82.619,82.559,23.8722]
[1646960107910,60.5941,82.62,82.54,15.72961961]
[1646960108110,6.054,82.619,82.54,15.72961961]
[1646960108308,18.1783,82.61,82.53,0.04344537]
[1646960108511,6.055,82.609,82.53,0.04344537]
[1646960108713,36.77413469,82.609,82.53,0.04344537]
[1646960108923,35.89565615,82.608,82.53,0.04344537]
[1646960109122,6.055,82.607,82.53,0.04344537]
[1646960109325,23.85038792,82.607,82.53,0.04344537]
[1646960109523,12.92374677,82.606,82.53,0.04344537]
[1646960109721,6.055,82.605,82.53,0.04344537]
[1646960109921,18.1826,82.59,82.53,0.04344537]
[1646960110125,30.5949,82.589,82.494,114.4]
[1646960110321,30.5949,82.589,82.397,4.42630617]
[1646960110322,120.2,82.588,82.46,14.54]
[1646960110524,120.2,82.586,82.471,15.38707992]
[1646960110723,6.058,82.585,82.471,15.38707992]
[1646960110922,19.31067444,82.584,82.471,15.38707992]
[1646960111124,14.54,82.58,82.471,15.38707992]
[1646960111324,6.058,82.579,82.471,41.66194794]
[1646960111522,18.1896,82.55,82.48,18.1893]
[1646960111722,18.10026823,82.549,82.48,18.1893]
[1646960111925,6.059,82.548,82.48,18.1893]
[1646960112724,18.1892,82.54,82.48,18.1893]
[1646960112922,6.059,82.548,82.48,18.1893]
[1646960113628,18.10026823,82.549,82.48,18.1893]
[1646960114428,18.10026823,82.549,82.481,26.27486802]
[1646960114627,18.10026823,82.549,82.5,18.1768]
[1646960114828,6.058,82.578,82.501,60.98909231]
[1646960115025,6.058,82.578,82.501,90.3084399]
[1646960115227,6.058,82.578,82.501,105.69551982]
[1646960115426,6.058,82.578,82.502,18.43155949]
[1646960115826,29.36622629,82.577,82.503,18.43155949]
[1646960116028,6.057,82.576,82.503,18.43155949]
[1646960116228,6.057,82.576,82.52,18.1766]
[1646960118228,29.36622629,82.577,82.52,18.1766]
[1646960118428,18.1814,82.57,82.504,15.38707992]
[1646960118628,6.057,82.569,82.492,15.38707992]
[1646960118832,6.058,82.576,82.492,15.38707992]
[1646960120231,18.1814,82.57,82.5,18.1846]
[1646960120435,6.058,82.569,82.5,18.1846]
[1646960121831,6.058,82.576,82.5,32.7246]
[1646960122232,29.36622629,82.577,82.5,48.11167992]
[1646960126138,29.36622629,82.577,82.501,3.04447957]
[1646960126338,29.36622629,82.577,82.52,18.1753]
[1646960126537,29.36622629,82.577,82.53,14.54]
[1646960127538,29.36622629,82.577,82.54,18.176]
[1646960129139,29.36622629,82.577,82.54,32.716]
[1646960129340,6.056,82.607,82.54,32.716]
[1646960130343,32.68395944,82.606,82.54,32.716]
[1646960130542,6.055,82.605,82.521,47.0092]
[1646960130742,32.16965512,82.605,82.521,47.0092]
[1646960131143,21.72087027,82.604,82.521,47.0092]
[1646960131443,6.056,82.603,82.521,47.0092]
[1646960131941,18.1745,82.6,82.521,47.0092]
[1646960132142,6.056,82.599,82.52,18.1785]
[1646960132343,14.54,82.6,82.508,15.38707992]
[1646960132541,120.2,82.597,82.496,15.38707992]
[1646960132745,120.2,82.597,82.47,14.54]
[1646960132746,6.057,82.596,82.476,48.3551]
[1646960132946,18.1792,82.58,82.49,18.1864]
[1646960133247,4.72698323,82.578,82.49,18.1864]
[1646960133445,6.058,82.577,82.49,18.1864]
[1646960134148,48.8169,82.576,82.49,32.7264]
[1646960134347,48.8169,82.576,82.49,48.11347992]
[1646960134545,4.72698323,82.578,82.501,114.4]
[1646960134745,4.72698323,82.578,82.52,18.1721]
[1646960134948,4.72698323,82.578,82.521,57.22534259]
[1646960135666,4.72698323,82.578,82.53,18.1745]
[1646960135866,4.72698323,82.578,82.53,32.7145]
[1646960138367,4.72698323,82.578,82.462,23.1183]
[1646960138567,29.0644,82.577,82.476,46.6329]
[1646960138768,44.63130301,82.577,82.476,46.6329]
[1646960138969,3.04447957,82.576,82.476,46.6329]
[1646960139169,6.057,82.575,82.476,46.6329]
[1646960139371,21.62390301,82.575,82.487,55.71230345]
[1646960139570,39.11613469,82.575,82.487,55.71230345]
[1646960139773,18.1816,82.57,82.49,18.1847]
[1646960140172,18.1816,82.57,82.5,53.38430115]
[1646960141774,23.3129,82.576,82.5,53.38430115]
[1646960142376,23.3129,82.576,82.51,18.1819]
[1646960143478,6.057,82.575,82.51,18.1819]
[1646960145878,6.057,82.575,82.51,32.7219]
[1646960146080,6.057,82.603,82.51,32.7219]
[1646960146283,54.5352,82.603,82.511,24.0703]
[1646960146480,54.5352,82.603,82.53,18.1738]
[1646960146684,54.5352,82.603,82.53,23.3238]
[1646960146883,27.58626211,82.602,82.531,52.34853862]
[1646960147080,6.055,82.601,82.531,52.34853862]
[1646960147281,27.58626211,82.602,82.531,52.34853862]
[1646960147881,27.58626211,82.602,82.55,18.1735]
[1646960148081,27.58626211,82.602,82.551,56.56192526]
[1646960149681,27.58626211,82.602,82.551,61.51192526]
[1646960151284,27.58626211,82.602,82.551,56.56192526]
[1646960153788,6.054,82.601,82.551,56.56192526]
[1646960156293,6.054,82.601,82.55,18.1739]
[1646960156493,21.22167957,82.6,82.48,17.9906]
[1646960156693,120.2,82.598,82.481,46.3558]
[1646960156892,7.6938238,82.597,82.481,46.3558]
[1646960157093,1.6368238,82.594,82.481,46.3558]
[1646960157295,14.54,82.59,82.481,46.3558]
[1646960157491,9.82468056,82.588,82.482,49.2249433]
[1646960157696,6.058,82.587,82.482,49.2249433]
[1646960157900,33.73265512,82.587,82.482,49.2249433]
[1646960158095,18.1872,82.57,82.482,49.2249433]
[1646960158294,54.0704,82.569,82.462,114.4]
[1646960158895,54.0704,82.569,82.463,18.23310586]
[1646960159096,54.0704,82.569,82.463,26.13758543]
[1646960159294,27.58626211,82.568,82.464,76.63541771]
[1646960159496,6.059,82.567,82.464,99.20472459]
[1646960159697,6.059,82.567,82.481,49.22258378]
[1646960159897,6.059,82.567,82.492,114.4]
[1646960160297,6.059,82.567,82.494,61.87077834]
[1646960160501,6.058,82.606,82.494,61.87077834]
[1646960160699,6.056,82.607,82.495,51.11077957]
[1646960160897,6.056,82.607,82.51,14.54]
[1646960161097,18.1757,82.6,82.53,18.175]
[1646960161725,35.88026902,82.599,82.531,55.3623802]
[1646960162326,6.055,82.598,82.54,18.176]
[1646960162523,30.5179,82.598,82.54,18.176]
[1646960164322,24.4629,82.598,82.54,18.176]
[1646960166625,24.7354,82.608,82.54,18.176]
[1646960166826,6.055,82.607,82.54,32.716]
[1646960167025,6.055,82.627,82.56,18.1613]
[1646960167226,6.055,82.627,82.57,14.54]
[1646960167426,6.053,82.649,82.57,14.54]
[1646960167626,29.94072628,82.648,82.571,50.72882351]
[1646960167830,6.051,82.647,82.571,50.72882351]
[1646960168625,6.051,82.647,82.58,18.167]
[1646960171133,14.98230852,82.646,82.58,18.167]
[1646960171333,14.98230852,82.646,82.571,23.5158]
[1646960171334,18.1664,82.64,82.571,23.5158]
[1646960171532,6.051,82.639,82.571,23.5158]
[1646960171734,6.051,82.639,82.497,3.709]
[1646960171735,24.73654159,82.639,82.52,14.54]
[1646960172035,24.73654159,82.639,82.533,24.6634]
[1646960172036,82.2519287,82.638,82.533,24.6634]
[1646960172234,85.29640827,82.638,82.533,24.6634]
[1646960172533,7.47021639,82.629,82.541,56.38441407]
[1646960172733,6.054,82.628,82.541,56.38441407]
[1646960172934,33.67748711,82.628,82.541,56.38441407]
[1646960173135,23.88906801,82.627,82.541,56.38441407]
[1646960173338,18.1733,82.61,82.541,56.38441407]
[1646960173535,28.18205844,82.608,82.541,56.38441407]
[1646960173740,6.055,82.607,82.541,56.38441407]
[1646960175137,28.18205844,82.608,82.55,18.1736]
[1646960175539,22.51,82.619,82.55,32.7136]
[1646960175740,22.51,82.619,82.551,3.04447957]
[1646960176141,22.51,82.619,82.57,18.1652]
[1646960176645,22.51,82.619,82.571,49.15554693]
[1646960177244,22.51,82.619,82.58,18.1665]
[1646960179446,28.08779866,82.62,82.58,18.1665]
[1646960179647,6.053,82.629,82.58,18.1665]
[1646960179848,6.051,82.637,82.58,18.1665]
[1646960180248,23.5624,82.638,82.58,18.1665]
[1646960180549,6.051,82.644,82.58,18.1665]
[1646960180750,34.49130816,82.643,82.58,18.1665]
[1646960182446,6.051,82.642,82.58,18.1665]
[1646960184652,8.1665,82.64,82.58,18.1665]
[1646960184851,6.051,82.639,82.58,18.1665]
[1646960186755,18.1687,82.63,82.57,18.1691]
[1646960186953,2.91963451,82.628,82.541,56.30840656]
[1646960187153,2.91963451,82.628,82.477,18.2669]
[1646960187154,6.054,82.627,82.543,23.9474]
[1646960187353,6.054,82.627,82.522,15.61909503]
[1646960187552,3.04447957,82.626,82.533,23.9474]
[1646960187781,6.054,82.625,82.533,23.9474]
[1646960187976,33.72865512,82.625,82.533,23.9474]
[1646960188181,33.72865512,82.625,82.534,57.14675425]
[1646960188978,18.1728,82.61,82.533,23.9474]
[1646960189183,30.8608,82.609,82.533,23.9474]
[1646960189578,30.8608,82.609,82.533,23.4474]
[1646960189880,27.17132442,82.608,82.533,23.4474]
[1646960190079,18.1778,82.59,82.533,23.4474]
[1646960190281,10.23961825,82.588,82.533,23.4474]
[1646960190480,6.056,82.587,82.533,23.4474]
[1646960191080,6.056,82.587,82.54,18.176]
[1646960192283,6.056,82.587,82.533,23.4474]
[1646960192682,10.23961825,82.588,82.533,23.4474]
[1646960193283,10.23961825,82.588,82.54,18.1758]
[1646960196098,10.23961825,82.588,82.54,65.5767012]
[1646960197694,10.23961825,82.588,82.54,18.1758]
[1646960197894,10.23961825,82.588,82.533,23.4474]
[1646960199996,10.23961825,82.588,82.54,18.1761]
[1646960200398,10.23961825,82.588,82.54,81.43000305]
[1646960201599,10.23961825,82.588,82.54,18.1761]
[1646960204410,10.23961825,82.588,82.54,77.2728557]
[1646960209619,6.055,82.61,82.54,77.2728557]
[1646960209816,6.055,82.631,82.54,91.8128557]
[1646960210316,6.055,82.636,82.54,94.85733527]
[1646960210514,36.60580382,82.605,82.54,94.85733527]
[1646960211315,36.60580382,82.605,82.54,110.4764303]
[1646960215443,6.055,82.619,82.54,110.4764303]
[1646960215644,6.054,82.634,82.541,18.23832489]
[1646960215844,6.054,82.635,82.56,18.1619]
[1646960216244,6.054,82.635,82.57,14.54]
[1646960216445,29.09348537,82.634,82.57,14.54]
[1646960217045,29.09348537,82.634,82.58,18.1656]
[1646960217450,29.09348537,82.634,82.581,50.54490715]
[1646960217644,6.051,82.633,82.581,50.54490715]
[1646960218046,18.1676,82.63,82.58,18.1656]
[1646960218246,18.1676,82.63,82.57,18.1691]
[1646960219346,18.1676,82.63,82.56,18.1714]
[1646960219547,9.09747957,82.629,82.542,15.61909503]
[1646960219751,18.1742,82.61,82.529,15.61909503]
[1646960219947,28.6226,82.609,82.529,15.61909503]
[1646960220146,60.5981,82.6,82.516,15.61909503]
[1646960220346,14.3724573,82.599,82.527,64.11644645]
[1646960220548,22.5539,82.598,82.54,18.1758]
[1646960221150,22.5539,82.598,82.541,56.89261086]
[1646960221749,22.5539,82.598,82.55,18.1738]
[1646960222650,22.5539,82.598,82.541,56.89261086]
[1646960224454,22.5539,82.598,82.542,6.055]
[1646960225255,22.5539,82.598,82.55,18.1737]
[1646960225552,59.08361132,82.598,82.55,18.1737]
[1646960227960,22.5539,82.598,82.55,18.1737]
[1646960233863,22.5539,82.598,82.533,23.4406]
[1646960234063,6.055,82.597,82.533,23.4406]
[1646960234865,6.055,82.597,82.534,59.71135904]
[1646960235264,18.1774,82.59,82.54,18.176]
[1646960236067,6.055,82.597,82.54,18.176]
[1646960236666,22.5539,82.598,82.54,18.176]
[1646960240702,6.055,82.623,82.541,3.04447957]
[1646960240902,24.4859,82.622,82.56,18.1648]
[1646960241102,24.4859,82.622,82.56,37.4448]
[1646960241503,30.20015089,82.621,82.561,53.91803689]
[1646960243102,30.20015089,82.621,82.57,18.167]
[1646960245606,18.1643,82.65,82.57,32.707]
[1646960245607,6.053,82.647,82.57,32.707]
[1646960245912,6.053,82.649,82.57,32.707]
[1646960246108,6.053,82.654,82.58,18.162]
[1646960246507,27.34479305,82.627,82.581,61.80916668]
[1646960246907,27.34479305,82.627,82.561,23.6622]
[1646960247308,27.34479305,82.627,82.57,18.1692]
[1646960247911,27.34479305,82.627,82.571,58.92182949]
[1646960248309,27.34479305,82.627,82.58,18.1665]
[1646960249511,27.34479305,82.627,82.57,18.169]
[1646960249812,28.8208,82.626,82.547,17.9276]
[1646960250112,28.8208,82.626,82.543,23.1335]
[1646960250411,55.19416539,82.626,82.543,23.1335]
[1646960251013,1.6368238,82.625,82.543,23.1335]
[1646960251213,53.55734159,82.626,82.519,18.1305]
[1646960251214,18.1719,82.62,82.519,18.1305]
[1646960251412,6.055,82.619,82.52,23.1335]
[1646960251612,1.6368238,82.618,82.52,23.1335]
[1646960251813,1.6368238,82.617,82.52,23.1335]
[1646960252014,6.055,82.616,82.52,23.1335]
[1646960252213,18.1754,82.6,82.54,18.1755]
[1646960252416,10.06614962,82.599,82.54,18.1755]
[1646960252614,6.055,82.598,82.54,18.1755]
[1646960256019,18.1778,82.59,82.51,25.91607044]
[1646960256221,6.056,82.589,82.493,46.9903]
[1646960256426,6.056,82.589,82.495,3.04447957]
[1646960256620,6.056,82.596,82.495,3.04447957]
[1646960256823,6.056,82.596,82.517,54.27600305]
[1646960257125,6.056,82.596,82.52,18.1806]
[1646960257320,46.4473,82.597,82.52,18.1806]
[1646960257720,46.4473,82.597,82.521,27.32387957]
[1646960258120,46.4473,82.597,82.541,55.33446963]
[1646960260525,6.055,82.596,82.541,55.33446963]
[1646960260728,46.4473,82.597,82.55,18.1737]
[1646960262128,46.4473,82.597,82.55,32.7137]
[1646960262729,46.4473,82.597,82.55,35.75817957]
[1646960263929,46.4473,82.597,82.55,32.7137]
[1646960270436,31.61731477,82.608,82.55,32.7137]
[1646960273537,46.2035,82.628,82.551,3.04447957]
[1646960273737,46.2035,82.628,82.57,18.1634]
[1646960273961,46.2035,82.628,82.57,32.7034]
[1646960274363,6.053,82.65,82.57,32.7034]
[1646960274560,30.51789274,82.649,82.571,114.05324511]
[1646960274759,30.51789274,82.649,82.59,18.154]
[1646960274959,30.51789274,82.649,82.59,32.694]
[1646960278262,6.051,82.648,82.59,32.694]
[1646960279765,30.51789274,82.649,82.59,32.694]
[1646960280765,30.51789274,82.649,82.59,14.54]
[1646960281166,30.51789274,82.649,82.581,23.2408]
[1646960281368,23.9454,82.648,82.581,23.2408]
[1646960281569,29.9964,82.648,82.571,60.72522843]
[1646960281768,18.1666,82.64,82.54,14.54]
[1646960281969,6.053,82.639,82.543,14.68952105]
[1646960282167,23.9454,82.638,82.544,24.6195]
[1646960282368,6.053,82.637,82.544,24.6195]
[1646960282567,30.60765512,82.637,82.544,24.6195]
[1646960282767,33.65213469,82.637,82.553,64.76235904]
[1646960283067,18.1756,82.62,82.56,18.1715]
[1646960283268,6.89304993,82.619,82.56,18.1715]
[1646960283669,6.054,82.618,82.56,18.1715]
[1646960287974,30.93774993,82.619,82.56,18.1715]
[1646960293479,6.054,82.618,82.56,18.1715]
[1646960310021,18.1726,82.61,82.517,23.5592]
[1646960310219,6.055,82.609,82.517,23.5592]
[1646960310424,1.6368238,82.602,82.517,23.5592]
[1646960310621,7.6928238,82.601,82.518,18.03449839]
[1646960310820,1.6368238,82.596,82.518,18.03449839]
[1646960311022,30.51789274,82.591,82.516,6.055]
[1646960311220,1.6368238,82.589,82.516,6.055]
[1646960311422,18.1835,82.57,82.516,6.055]
[1646960311621,23.8235,82.57,82.516,6.055]
[1646960311821,23.8235,82.57,82.493,23.5592]
[1646960312022,29.9797,82.569,82.488,114.4]
[1646960312224,29.9797,82.569,82.478,53.51204399]
[1646960312429,18.1855,82.55,82.49,18.1869]
[1646960312628,23.8855,82.55,82.49,18.1869]
[1646960313024,23.8855,82.55,82.478,27.82273711]
[1646960313225,12.37392487,82.548,82.466,30.86721668]
[1646960313426,1.70131779,82.529,82.454,27.73607044]
[1646960313623,29.1884,82.528,82.454,27.73607044]
[1646960314024,29.1884,82.528,82.445,25.68930688]
[1646960314224,29.1884,82.528,82.441,27.73607044]
[1646960314424,29.1884,82.528,82.429,45.99147044]
[1646960314630,29.1884,82.528,82.429,71.68077732]
[1646960314827,29.1884,82.528,82.43,14.54]
[1646960315027,29.1884,82.528,82.43,72.0437838]
[1646960315228,10.41349918,82.499,82.44,18.1979]
[1646960315830,18.11349918,82.499,82.44,18.1979]
[1646960316832,18.1988,82.49,82.44,18.1979]
[1646960318630,18.2034,82.47,82.431,27.73607044]
[1646960318833,6.064,82.489,82.431,27.73607044]
[1646960319031,6.064,82.489,82.418,27.73607044]
[1646960319834,6.58,82.489,82.4,40.47585149]
[1646960320039,6.064,82.488,82.399,0.60656897]
[1646960320234,30.56748711,82.488,82.399,0.60656897]
[1646960320439,6.064,82.488,82.399,0.60656897]
[1646960320635,27.54796668,82.487,82.399,0.60656897]
[1646960320840,3.66174348,82.485,82.399,0.60656897]
[1646960321035,14.54,82.47,82.399,0.60656897]
[1646960321233,10.41349918,82.439,82.399,0.60656897]
[1646960321434,17.48349918,82.439,82.399,0.60656897]
[1646960321736,10.41349918,82.439,82.399,0.60656897]
[1646960321933,22.8074,82.459,82.399,0.60656897]
[1646960322533,22.8074,82.459,82.4,18.2045]
[1646960323035,10.87985076,82.458,82.401,57.76805018]
[1646960326137,22.8074,82.459,82.401,57.76805018]
[1646960326341,6.066,82.468,82.401,57.76805018]
[1646960326537,29.5708,82.497,82.402,54.76252355]
[1646960326743,29.5708,82.497,82.42,114.4]
[1646960327138,11.96346748,82.496,82.42,62.97683341]
[1646960327337,11.96346748,82.496,82.421,16.13848686]
[1646960327338,6.063,82.495,82.421,16.13848686]
[1646960327540,30.7435,82.495,82.421,16.13848686]
[1646960328339,18.2005,82.49,82.421,16.13848686]
[1646960328538,6.063,82.489,82.421,16.13848686]
[1646960329542,6.063,82.489,82.43,18.1987]
[1646960329742,6.063,82.494,82.43,18.1987]
[1646960331449,6.063,82.494,82.43,18.0787]
[1646960332950,23.5058,82.497,82.431,16.13848686]
[1646960333349,23.5058,82.497,82.432,26.07717245]
[1646960333549,23.5058,82.497,82.432,53.81324289]
[1646960333750,23.5058,82.497,82.433,43.8745573]
[1646960333978,23.5058,82.497,82.433,105.08873896]
[1646960334149,23.5058,82.497,82.434,43.8745573]
[1646960334549,23.5058,82.497,82.435,43.8745573]
[1646960334754,23.5058,82.497,82.44,14.54]
[1646960335349,23.5058,82.497,82.441,16.13848686]
[1646960335752,6.063,82.518,82.441,16.13848686]
[1646960335950,23.7274,82.517,82.441,16.13848686]
[1646960336149,6.062,82.516,82.441,16.13848686]
[1646960336551,23.7274,82.517,82.441,16.13848686]
[1646960336752,10.08037301,82.516,82.441,16.13848686]
[1646960342461,6.062,82.515,82.441,16.13848686]
[1646960342662,6.062,82.515,82.44,14.54]